bitfinex-derivatives/quotes_SOLF0:USTF0_20250113
["timestamp","ask_amount","ask_price","bid_price","bid_amount"]
[1736791634330,21.91113097,177.96,177.81,28.29113097]
[1736791634723,2.8115,177.92,177.81,28.29113097]
[1736791634927,21.91113097,177.96,177.81,28.29113097]
[1736791635532,2.8118,177.9,177.81,28.29113097]
[1736791636129,2.8121,177.89,177.85,2.8125]
[1736791637030,28.27113097,177.96,177.81,21.91113097]
[1736791637234,21.91113097,177.93,177.8,8.0008]
[1736791637431,1.6703,177.92,177.8,1.6408]
[1736791637626,21.91113097,177.9,177.8,1.6408]
[1736791637832,1.6285,177.89,177.8,1.6408]
[1736791638029,1.6285,177.89,177.75,21.91113097]
[1736791638228,21.91113097,177.87,177.75,2.8141]
[1736791638433,21.91113097,177.87,177.73,3.3952]
[1736791638731,2.8135,177.8,177.7,2.8149]
[1736791638937,21.91113097,177.84,177.69,26.60366749]
[1736791639136,1.6703,177.83,177.72,21.91113097]
[1736791640145,1.6703,177.83,177.74,2.8143]
[1736791640345,1.6703,177.83,177.69,26.60366749]
[1736791640543,1.6703,177.83,177.7,6.36]
[1736791640745,3.3431,177.83,177.7,6.36]
[1736791641242,2.8137,177.78,177.73,2.8144]
[1736791641749,3.3431,177.83,177.7,6.36]
[1736791641940,3.3431,177.83,177.72,2.8146]
[1736791642247,3.3431,177.83,177.7,6.36]
[1736791642448,3.3431,177.83,177.69,26.60366749]
[1736791642449,21.91113097,177.81,177.69,4.69253652]
[1736791642643,6.36,177.82,177.59,30.57643256]
[1736791642644,21.91113097,177.78,177.64,6.36]
[1736791642842,21.91113097,177.75,177.6,23.63593097]
[1736791643043,3.3423,177.74,177.6,23.63593097]
[1736791643243,21.91113097,177.72,177.6,1.7248]
[1736791643446,1.7223,177.71,177.6,1.7248]
[1736791644046,1.7223,177.71,177.6,23.63593097]
[1736791645042,2.8151,177.7,177.64,2.8158]
[1736791646049,1.7223,177.71,177.6,23.63593097]
[1736791646245,1.7223,177.71,177.6,1.7248]
[1736791646549,1.7223,177.71,177.6,23.63593097]
[1736791647148,1.7223,177.71,177.6,1.7248]
[1736791648452,21.91113097,177.69,177.56,104.4569]
[1736791648658,21.91113097,177.69,177.56,96.52]
[1736791648854,2.8163,177.62,177.56,99.3372]
[1736791649054,1.7223,177.71,177.51,21.91113097]
[1736791649055,21.91113097,177.66,177.51,21.91113097]
[1736791649255,3.2575,177.65,177.52,6.34]
[1736791649455,3.2575,177.65,177.54,2.8174]
[1736791650152,2.8168,177.59,177.54,2.8174]
[1736791650453,21.91113097,177.63,177.52,2.8178]
[1736791650652,2.8165,177.61,177.49,4.9492]
[1736791650847,1.6544,177.62,177.56,2.8171]
[1736791651054,1.6544,177.62,177.49,3.3023]
[1736791651259,2.8169,177.59,177.49,3.3023]
[1736791651452,1.6544,177.62,177.5,2.8181]
[1736791651653,21.91113097,177.6,177.49,1.7208]
[1736791652156,21.91113097,177.57,177.47,11.03795409]
[1736791652352,1.5594,177.56,177.43,1.6726]
[1736791652559,21.91113097,177.54,177.42,6.34]
[1736791652856,1.6089,177.55,177.42,28.25113097]
[1736791653049,4.3766,177.56,177.48,2.8184]
[1736791653257,23.52003097,177.6,177.45,21.91113097]
[1736791653653,2.8172,177.57,177.51,2.8178]
[1736791654054,2.8167,177.59,177.48,21.91113097]
[1736791654253,1.5594,177.61,177.49,7.9642]
[1736791654656,2.8171,177.57,177.52,2.8177]
[1736791654851,2.8171,177.57,177.49,7.9642]
[1736791655952,1.5594,177.61,177.49,7.9642]
[1736791656553,3.215,177.61,177.49,7.9642]
[1736791656752,21.91113097,177.6,177.49,7.9642]
[1736791657158,2.8167,177.59,177.52,2.8177]
[1736791657353,2.8167,177.59,177.49,7.9642]
[1736791657553,3.215,177.61,177.49,7.9642]
[1736791658052,21.91113097,177.6,177.49,1.6242]
[1736791658858,21.91113097,177.6,177.46,6.34]
[1736791659052,2.8172,177.56,177.49,2.8182]
[1736791659359,21.91113097,177.6,177.45,23.62883097]
[1736791659561,2.818,177.51,177.46,2.8187]
[1736791659957,21.91113097,177.57,177.45,1.7177]
[1736791660559,2.8178,177.53,177.48,2.8184]
[1736791660858,21.91113097,177.57,177.48,2.8184]
[1736791661263,2.8178,177.53,177.48,2.8184]
[1736791661458,21.91113097,177.57,177.47,2.8186]
[1736791661657,21.91113097,177.57,177.44,8.0346]
[1736791661958,3.215,177.61,177.48,21.91113097]
[1736791662152,1.6544,177.62,177.51,21.91113097]
[1736791662454,21.91113097,177.69,177.54,21.91113097]
[1736791662658,21.91113097,177.69,177.62,2.8162]
[1736791662862,26.78483097,177.72,177.62,2.8162]
[1736791663062,2.8158,177.65,177.6,2.8165]
[1736791663360,21.91113097,177.69,177.55,1.6921]
[1736791663859,4.8737,177.72,177.51,21.91113097]
[1736791663860,21.91113097,177.66,177.51,21.91113097]
[1736791664361,21.91113097,177.66,177.53,2.8175]
[1736791664562,21.91113097,177.63,177.5,102.98]
[1736791664757,2.8171,177.57,177.52,2.8177]
[1736791665059,4.8409,177.62,177.5,102.98]
[1736791665557,2.8168,177.59,177.54,2.8174]
[1736791666064,4.8409,177.62,177.5,102.98]
[1736791666065,4.8409,177.62,177.58,2.8168]
[1736791666259,1.12561909,177.68,177.54,21.91113097]
[1736791666461,1.7161,177.67,177.55,1.6043]
[1736791666655,2.8158,177.65,177.61,2.8163]
[1736791666861,1.7161,177.67,177.57,21.91113097]
[1736791667059,1.7161,177.67,177.57,28.23113097]
[1736791667463,2.8157,177.66,177.61,2.8163]
[1736791667663,1.7161,177.67,177.61,2.8163]
[1736791667859,1.12561909,177.68,177.57,28.23113097]
[1736791668060,1.12561909,177.68,177.6,21.91113097]
[1736791668365,2.8152,177.69,177.6,21.91113097]
[1736791669664,1.7161,177.72,177.64,2.8158]
[1736791669864,2.8153,177.68,177.64,2.8158]
[1736791670556,2.815,177.7,177.66,2.8156]
[1736791670755,1.7161,177.72,177.6,21.91113097]
[1736791670960,21.91113097,177.78,177.63,21.91113097]
[1736791671161,21.91113097,177.78,177.64,7.9056]
[1736791671360,1.7127,177.77,177.64,7.9056]
[1736791671564,2.8151,177.7,177.66,2.8156]
[1736791671964,21.91113097,177.75,177.64,7.9056]
[1736791672369,21.91113097,177.75,177.64,6.3]
[1736791673768,21.91113097,177.75,177.65,2.8157]
[1736791674163,21.91113097,177.75,177.64,20.37]
[1736791674366,21.91113097,177.72,177.64,14.07]
[1736791674565,1.7116,177.71,177.64,14.07]
[1736791675070,1.6968,177.7,177.64,14.07]
[1736791675471,2.8154,177.68,177.64,14.07]
[1736791675673,1.7116,177.71,177.64,14.07]
[1736791676066,2.8147,177.72,177.67,2.8154]
[1736791676273,2.8147,177.72,177.64,14.07]
[1736791676572,23.60563097,177.75,177.64,14.07]
[1736791678076,2.815,177.7,177.66,2.8156]
[1736791679278,2.8151,177.69,177.66,2.8156]
[1736791679767,2.8147,177.72,177.64,16.8859]
[1736791679973,23.60563097,177.75,177.64,14.07]
[1736791680174,21.91113097,177.71,177.64,14.07]
[1736791680577,24.73080677,177.75,177.64,14.07]
[1736791680973,2.8196758,177.75,177.64,20.33]
[1736791681272,1.1251758,177.75,177.68,21.91113097]
[1736791681479,2.8137,177.79,177.68,21.91113097]
[1736791682070,1.693,177.83,177.71,21.91113097]
[1736791682281,1.6781,177.86,177.74,21.91113097]
[1736791682575,28.17113097,177.91,177.75,1.6171]
[1736791682576,2.8123,177.87,177.75,1.6171]
[1736791682777,1.6744,177.9,177.77,21.91113097]
[1736791682967,1.6744,177.9,177.75,3.3395]
[1736791683174,2.8131,177.82,177.75,3.3395]
[1736791683577,2.8126,177.85,177.8,2.8133]
[1736791683779,1.6744,177.9,177.8,2.8133]
[1736791683981,1.6744,177.9,177.79,6.26]
[1736791684174,2.8126,177.85,177.8,2.8133]
[1736791685078,1.6744,177.9,177.79,6.26]
[1736791685685,2.8126,177.86,177.79,6.26]
[1736791685876,1.6744,177.9,177.79,6.26]
[1736791686272,2.8127,177.85,177.8,2.8134]
[1736791687081,1.6744,177.9,177.79,6.26]
[1736791687281,1.6744,177.9,177.81,2.8132]
[1736791688176,1.6744,177.9,177.83,2.8129]
[1736791688378,1.6744,177.9,177.79,6.26]
[1736791688776,1.6744,177.9,177.83,2.8128]
[1736791689284,2.8121,177.88,177.83,2.8128]
[1736791689579,2.8121,177.88,177.81,2.8131]
[1736791689776,2.8121,177.88,177.79,6.26]
[1736791690181,1.6744,177.9,177.82,2.8129]
[1736791690382,1.6744,177.9,177.79,6.26]
[1736791690577,21.91113097,177.96,177.83,21.91113097]
[1736791690786,6.22,178.0,177.88,2.8121]
[1736791690787,21.91113097,177.99,177.88,2.8121]
[1736791690982,21.91113097,177.99,177.84,1.6563]
[1736791691182,21.91113097,177.96,177.84,1.6563]
[1736791691685,21.91113097,177.96,177.85,2.8125]
[1736791692378,2.812,177.89,177.84,1.6563]
[1736791692580,21.91113097,177.93,177.8,1.6146]
[1736791692789,3.3508,177.92,177.8,1.6146]
[1736791692980,2.8125,177.86,177.81,2.8132]
[1736791693180,5.0045,177.92,177.8,1.6146]
[1736791693780,2.8121,177.88,177.84,2.8126]
[1736791694084,1.6553,177.92,177.8,1.6146]
[1736791695186,1.6553,177.92,177.84,2.8127]
[1736791695187,2.8122,177.88,177.84,2.8127]
[1736791697380,2.8124,177.87,177.8,1.6146]
[1736791697578,2.8124,177.87,177.8,7.8146]
[1736791697983,2.8126,177.85,177.8,7.8146]
[1736791698181,21.91113097,177.9,177.8,6.2]
[1736791698385,1.7229,177.89,177.81,2.8131]
[1736791698587,2.8122,177.88,177.8,6.2]
[1736791698780,1.6553,177.92,177.8,7.8665]
[1736791699186,2.812,177.89,177.85,2.8125]
[1736791700985,2.8118,177.9,177.87,2.8123]
[1736791701589,1.7229,177.96,177.83,21.91113097]
[1736791701783,1.643,177.97,177.86,21.91113097]
[1736791702088,1.643,177.97,177.87,7.8297]
[1736791702291,1.6175,178.02,177.89,21.91113097]
[1736791702686,2.8105,177.99,177.89,21.91113097]
[1736791703593,21.91113097,178.05,177.92,21.91113097]
[1736791703991,2.8102,178.0,177.96,2.8107]
[1736791704291,21.91113097,178.05,177.89,21.91113097]
[1736791704789,2.8109,177.96,177.92,2.8115]
[1736791704990,21.91113097,178.05,177.89,21.91113097]
[1736791705694,2.8108,177.97,177.89,21.91113097]
[1736791706685,2.8105,177.99,177.89,21.91113097]
[1736791706892,21.91113097,178.05,177.89,21.91113097]
[1736791707295,21.91113097,178.01,177.87,3.1971]
[1736791707687,2.8113,177.94,177.87,3.1971]
[1736791708091,21.91113097,177.98,177.87,1.6297]
[1736791708395,3.2887,177.97,177.87,1.6297]
[1736791708791,2.8115,177.93,177.87,1.6297]
[1736791709190,3.2887,177.97,177.87,1.6297]
[1736791709496,2.8115,177.92,177.89,2.812]
[1736791710197,1.5698,177.97,177.87,23.54083097]
[1736791710392,1.7303,178.03,177.9,21.91113097]
[1736791710587,3.3687,178.03,177.93,2.8113]
[1736791710892,21.91113097,178.01,177.87,23.54083097]
[1736791711095,21.91113097,177.98,177.9,2.8118]
[1736791711394,21.91113097,178.01,177.87,23.54083097]
[1736791711790,2.811,177.96,177.87,23.54083097]
[1736791712699,2.8112,177.94,177.87,23.54083097]
[1736791713400,2.8112,177.94,177.91,2.8116]
[1736791714494,21.91113097,178.01,177.87,1.6297]
[1736791714699,9.5487,178.03,177.87,1.6297]
[1736791715000,2.8114,177.93,177.89,2.8118]
[1736791715605,2.8114,177.93,177.87,1.6297]
[1736791715898,2.8111,177.95,177.87,23.54083097]
[1736791716097,9.5487,178.03,177.87,23.54083097]
[1736791716293,9.5487,178.03,177.94,2.8111]
[1736791716499,2.8107,177.98,177.88,1.6964]
[1736791716894,2.8108,177.97,177.88,1.6964]
[1736791717604,9.5487,178.03,177.88,1.6964]
[1736791717797,9.5487,178.03,177.88,7.8764]
[1736791718003,21.91113097,178.01,177.9,2.8117]
[1736791719604,2.8106,177.98,177.9,2.8117]
[1736791719799,21.91113097,178.01,177.9,2.8117]
[1736791720807,2.8113,177.94,177.9,2.8117]
[1736791721506,2.8114,177.93,177.9,2.8117]
[1736791722401,2.8114,177.93,177.87,1.6297]
[1736791722602,2.8114,177.93,177.89,2.8119]
[1736791722803,21.91113097,178.01,177.87,23.54083097]
[1736791723006,21.91113097,178.01,177.93,2.8112]
[1736791723203,2.8108,177.97,177.93,2.8112]
[1736791724707,2.8108,177.97,177.9,2.8118]
[1736791724902,2.8108,177.97,177.87,23.54083097]
[1736791725515,2.8108,177.97,177.93,2.8112]
[1736791725716,2.8109,177.96,177.93,2.8112]
[1736791726212,21.91113097,178.01,177.93,2.8112]
[1736791726411,2.811,177.95,177.93,2.8112]
[1736791726609,21.91113097,178.01,177.93,2.8112]
[1736791726814,2.811,177.96,177.93,2.8112]
[1736791727210,21.91113097,178.01,177.91,2.8116]
[1736791727411,2.8112,177.95,177.88,13.65375536]
[1736791727809,13.65375536,178.0,177.88,13.65375536]
[1736791728014,2.8109,177.96,177.93,2.8113]
[1736791729114,2.8111,177.95,177.92,2.8114]
[1736791729918,2.8112,177.94,177.92,2.8114]
[1736791730409,13.65375536,178.0,177.88,13.65375536]
[1736791730615,2.8116,177.92,177.89,2.8119]
[1736791731210,13.65375536,177.97,177.85,13.65375536]
[1736791731412,1.5793,177.96,177.85,13.65375536]
[1736791731609,2.812,177.89,177.85,13.65375536]
[1736791731909,13.65375536,177.94,177.82,21.47015536]
[1736791732117,1.6405,177.93,177.82,21.47015536]
[1736791732310,1.6405,177.93,177.82,19.77375536]
[1736791732514,13.65375536,177.91,177.8,6.12]
[1736791732716,13.65375536,177.88,177.79,127.13643256]
[1736791733423,13.65375536,177.88,177.79,96.56]
[1736791733619,13.65375536,177.91,177.79,96.56]
[1736791733818,2.8124,177.86,177.83,2.8129]
[1736791734014,13.65375536,177.91,177.8,13.65375536]
[1736791735019,2.8122,177.88,177.83,2.8129]
[1736791735221,13.65375536,177.91,177.83,2.8129]
[1736791735518,13.65375536,177.91,177.8,13.65375536]
[1736791736327,1.6405,177.93,177.79,96.56]
[1736791736328,13.65375536,177.88,177.79,96.56]
[1736791736817,13.65375536,177.88,177.79,99.3734]
[1736791737823,2.8129,177.83,177.79,99.3734]
[1736791738224,13.65375536,177.88,177.76,1.6232]
[1736791738528,13.65375536,177.82,177.71,19.79375536]
[1736791738725,1.6384,177.81,177.71,13.65375536]
[1736791738921,13.65375536,177.79,177.7,12.33615191]
[1736791739230,13.65375536,177.76,177.67,7.64410814]
[1736791739627,1.5764,177.75,177.67,7.64410814]
[1736791740025,2.8148,177.72,177.67,10.45940814]
[1736791740320,1.5764,177.75,177.67,10.45940814]
[1736791740526,1.5764,177.75,177.65,19.79375536]
[1736791740731,2.815,177.7,177.64,1.5896]
[1736791741834,21.9101928,177.73,177.61,96.5]
[1736791742132,21.9101928,177.67,177.56,1.6581]
[1736791742324,2.8161,177.63,177.56,1.6581]
[1736791742525,21.9101928,177.67,177.56,1.6581]
[1736791742829,1.6953,177.71,177.61,2.8164]
[1736791743219,1.6953,177.71,177.59,2.8166]
[1736791743826,1.6953,177.71,177.58,6.14]
[1736791744128,21.9101928,177.65,177.55,6.14]
[1736791744528,21.9101928,177.65,177.55,8.9573]
[1736791745029,2.8165,177.61,177.55,6.14]
[1736791745232,2.8165,177.61,177.56,2.8171]
[1736791745427,21.9101928,177.65,177.56,2.8171]
[1736791746133,21.9101928,177.65,177.52,21.9101928]
[1736791746134,2.8169,177.58,177.51,3.3443]
[1736791746325,1.6091,177.64,177.51,9.4843]
[1736791746727,3.2098,177.63,177.51,9.4843]
[1736791747530,3.2098,177.63,177.51,17.4243]
[1736791747730,2.8166,177.6,177.51,17.4243]
[1736791747926,3.2098,177.63,177.51,17.4243]
[1736791748132,25.1199928,177.63,177.51,14.08]
[1736791748530,3.2098,177.63,177.51,14.08]
[1736791748734,2.8166,177.6,177.55,2.8173]
[1736791749232,2.8164,177.61,177.56,2.8171]
[1736791749422,2.8164,177.61,177.51,15.704]
[1736791749423,3.2098,177.63,177.51,15.704]
[1736791749822,2.8164,177.61,177.56,2.8171]
[1736791751030,21.9101928,177.6,177.51,14.08]
[1736791751431,2.8178,177.52,177.51,14.08]
[1736791751832,21.9101928,177.6,177.51,14.08]
[1736791752435,2.8171,177.57,177.53,2.8177]
[1736791752636,2.8171,177.57,177.51,14.08]
[1736791753131,2.8173,177.56,177.51,14.08]
[1736791753331,21.9101928,177.6,177.51,14.08]
[1736791753732,21.9101928,177.57,177.51,14.08]
[1736791754137,2.8178,177.52,177.51,14.08]
[1736791755231,21.9101928,177.54,177.42,1.6016]
[1736791755439,21.9101928,177.51,177.41,4.69992237]
[1736791755742,2.819,177.45,177.41,4.69992237]
[1736791756332,21.9101928,177.51,177.39,2.8197]
[1736791757139,2.819,177.45,177.4,2.8196]
[1736791757539,2.8188,177.46,177.42,2.8193]
[1736791757733,21.9101928,177.51,177.38,96.64]
[1736791758442,1.5946,177.53,177.38,118.5501928]
[1736791758634,1.5946,177.53,177.41,21.9101928]
[1736791758828,2.818,177.51,177.46,2.8186]
[1736791759037,2.818,177.51,177.42,1.6765]
[1736791759038,1.5946,177.53,177.43,1.6771]
[1736791759335,2.8186,177.48,177.43,1.6771]
[1736791760039,2.8186,177.47,177.43,1.6771]
[1736791760536,2.8189,177.46,177.38,118.5501928]
[1736791760736,21.9101928,177.51,177.38,120.2272928]
[1736791761440,2.8191,177.45,177.38,120.2272928]
[1736791761637,21.9101928,177.51,177.38,98.3171]
[1736791761839,13.3915,177.65,177.45,21.9101928]
[1736791762043,21.9101928,177.62,177.46,9.4052]
[1736791762242,21.9101928,177.62,177.47,1.6957]
[1736791762540,28.0901928,177.62,177.47,1.6957]
[1736791762738,1.6949,177.61,177.47,1.6957]
[1736791763536,2.8175,177.54,177.48,2.8183]
[1736791764340,2.8175,177.54,177.49,2.8182]
[1736791764541,2.818,177.51,177.47,1.6957]
[1736791764739,21.9101928,177.53,177.42,2.8192]
[1736791764940,21.9101928,177.53,177.4,3.1779]
[1736791765137,21.9101928,177.5,177.4,3.1779]
[1736791765445,21.9101928,177.47,177.35,96.7]
[1736791765649,21.9101928,177.44,177.35,96.7]
[1736791766542,21.9101928,177.44,177.31,4.7704]
[1736791766943,2.8197,177.41,177.31,7.5914]
[1736791767138,21.9101928,177.44,177.31,7.5914]
[1736791767341,21.9101928,177.44,177.31,4.7704]
[1736791767538,1.5686,177.45,177.34,2.8205]
[1736791767539,2.8197,177.41,177.34,2.8205]
[1736791767740,2.8197,177.41,177.31,4.7704]
[1736791768043,2.8201,177.38,177.33,2.8207]
[1736791769044,2.8199,177.39,177.34,2.8207]
[1736791771137,2.8202,177.38,177.31,4.7704]
[1736791771341,21.9101928,177.42,177.31,4.7704]
[1736791771536,23.4787928,177.45,177.38,2.8199]
[1736791771745,1.5686,177.45,177.38,2.8199]
[1736791773245,2.8195,177.42,177.38,2.8199]
[1736791773948,2.8197,177.4,177.35,2.8204]
[1736791774143,21.9101928,177.42,177.31,4.7704]
[1736791774339,21.9101928,177.42,177.31,3.1779]
[1736791774545,2.8202,177.37,177.33,2.8208]
[1736791775245,2.8204,177.36,177.33,2.8208]
[1736791775445,21.9101928,177.42,177.31,3.1779]
[1736791776339,2.82,177.39,177.31,3.1779]
[1736791776739,21.9101928,177.42,177.34,2.8206]
[1736791776940,2.8201,177.38,177.31,3.1779]
[1736791777949,2.8201,177.38,177.34,2.8206]
[1736791778345,1.7064,177.44,177.31,3.1779]
[1736791778547,1.5686,177.45,177.33,21.9101928]
[1736791778746,1.5686,177.45,177.31,3.1779]
[1736791778747,1.7231,177.49,177.36,21.9101928]
[1736791779146,21.9101928,177.54,177.39,21.9101928]
[1736791779347,21.9101928,177.54,177.4,3.2197]
[1736791779550,21.9101928,177.48,177.36,2.8202]
[1736791779851,21.9101928,177.45,177.35,6.16]
[1736791780052,2.8203,177.37,177.32,3.2197]
[1736791780450,1.5889,177.44,177.33,2.8208]
[1736791780951,2.8203,177.37,177.33,2.8208]
[1736791781142,21.9101928,177.42,177.32,6.0407]
[1736791781342,21.9101928,177.39,177.24,21.9101928]
[1736791781547,2.8212,177.31,177.27,2.8218]
[1736791781742,1.6057,177.38,177.26,3.2197]
[1736791781953,1.6057,177.38,177.27,7.12]
[1736791782151,2.8206,177.35,177.31,2.8211]
[1736791782353,1.6057,177.38,177.27,7.12]
[1736791782741,2.8206,177.35,177.27,7.12]
[1736791783154,2.8206,177.35,177.29,2.8214]
[1736791783346,2.8206,177.35,177.27,7.12]
[1736791783842,2.8206,177.35,177.3,2.8212]
[1736791784757,2.8203,177.37,177.27,29.0301928]
[1736791785055,1.6424,177.43,177.3,21.9101928]
[1736791785247,1.6424,177.43,177.31,1.6372]
[1736791785451,1.6424,177.43,177.32,6.16]
[1736791785655,21.9101928,177.48,177.33,21.9101928]
[1736791785859,3.3489,177.51,177.39,21.9101928]
[1736791786056,23.0366995,177.54,177.4,6.16]
[1736791786259,1.1265067,177.54,177.42,21.9101928]
[1736791786857,2.818,177.51,177.45,2.8188]
[1736791787157,2.818,177.51,177.42,21.9101928]
[1736791787658,1.1265067,177.54,177.45,21.9101928]
[1736791788162,2.8173,177.55,177.49,2.8181]
[1736791788365,1.6243,177.59,177.49,2.8181]
[1736791788760,2.8176,177.54,177.49,2.8181]
[1736791789760,21.9101928,177.57,177.43,6.16]
[1736791790668,2.8181,177.5,177.45,2.8189]
[1736791790869,21.9101928,177.57,177.45,2.8189]
[1736791791365,2.8182,177.5,177.45,2.8189]
[1736791792866,1.6855,177.56,177.45,2.8189]
[1736791793068,21.9101928,177.54,177.4,11.0715]
[1736791793567,21.9101928,177.54,177.46,2.8188]
[1736791793762,9.4,177.56,177.4,11.0715]
[1736791794366,2.818,177.51,177.4,11.0715]
[1736791794763,2.818,177.51,177.42,21.9101928]
[1736791795267,2.8182,177.5,177.42,21.9101928]
[1736791795864,9.4,177.56,177.42,21.9101928]
[1736791796069,1.6855,177.56,177.45,21.9101928]
[1736791796662,2.8175,177.54,177.48,2.8184]
[1736791796865,1.6855,177.56,177.48,2.8184]
[1736791797174,2.8184,177.49,177.44,2.819]
[1736791797364,1.6855,177.56,177.44,2.819]
[1736791797565,1.6855,177.56,177.43,6.14]
[1736791797767,2.8183,177.49,177.45,2.8188]
[1736791799867,3.3504,177.56,177.43,6.14]
[1736791800067,21.9101928,177.54,177.43,6.14]
[1736791800470,2.8189,177.46,177.43,6.14]
[1736791801070,21.9101928,177.54,177.43,6.14]
[1736791801071,2.8184,177.49,177.43,6.14]
[1736791801469,21.9101928,177.54,177.44,2.8189]
[1736791801768,2.8185,177.48,177.44,2.8189]
[1736791802570,2.8184,177.49,177.45,2.8188]
[1736791803165,3.3504,177.56,177.43,6.14]
[1736791803469,156.56556321,177.66,177.45,21.9101928]
[1736791803674,3.3017,177.64,177.51,21.9101928]
[1736791803967,1.5999,177.64,177.52,10.9678]
[1736791804172,2.8163,177.62,177.58,2.8167]
[1736791804473,21.9101928,177.68,177.54,21.9101928]
[1736791804674,2.8169,177.58,177.55,2.8173]
[1736791804875,21.9101928,177.62,177.52,10.9678]
[1736791805474,6.12,177.65,177.52,10.9678]
[1736791805475,2.8167,177.59,177.52,10.9678]
[1736791805672,28.0301928,177.65,177.52,10.9678]
[1736791806176,2.817,177.58,177.52,10.9678]
[1736791806472,28.0301928,177.65,177.52,10.9678]
[1736791806672,2.8171,177.57,177.52,10.9678]
[1736791807266,2.8171,177.57,177.52,13.7855]
[1736791807464,1.6201,177.64,177.52,10.9678]
[1736791807876,21.9101928,177.62,177.52,6.12]
[1736791808064,21.9101928,177.62,177.46,6.12]
[1736791808065,21.9101928,177.59,177.46,6.12]
[1736791808270,1.6291,177.58,177.46,6.12]
[1736791808465,2.818,177.51,177.46,6.12]
[1736791808667,21.9101928,177.56,177.46,6.12]
[1736791809075,2.8186,177.47,177.4,6.14]
[1736791809273,21.9101928,177.53,177.4,7.7394]
[1736791809467,21.9101928,177.5,177.4,1.5994]
[1736791809673,2.8193,177.43,177.39,101.2043]
[1736791810070,2.8191,177.44,177.39,101.2043]
[1736791810467,3.1617,177.49,177.38,2.82]
[1736791810667,2.8192,177.44,177.36,6.14]
[1736791811069,21.9101928,177.47,177.34,3.264]
[1736791811272,21.9101928,177.44,177.34,3.264]
[1736791811880,2.8198,177.4,177.35,2.8205]
[1736791812179,21.9101928,177.44,177.35,2.8205]
[1736791812473,2.8195,177.42,177.35,2.8205]
[1736791812678,21.9101928,177.44,177.35,2.8205]
[1736791813178,2.8195,177.42,177.35,2.8205]
[1736791813369,21.9101928,177.44,177.34,1.6903]
[1736791813576,21.9101928,177.44,177.33,4.5249]
[1736791814076,21.9101928,177.44,177.33,1.7042]
[1736791814480,21.9101928,177.48,177.33,23.6143928]
[1736791814879,21.9101928,177.48,177.33,1.7042]
[1736791816278,21.9101928,177.48,177.37,2.8202]
[1736791816872,21.9101928,177.48,177.33,1.7042]
[1736791817073,21.9101928,177.44,177.33,1.7042]
[1736791817377,21.9101928,177.47,177.33,23.6143928]
[1736791817770,3.1617,177.49,177.33,23.6143928]
[1736791817975,3.1617,177.49,177.36,21.9101928]
[1736791818177,3.1617,177.49,177.37,1.6645]
[1736791818375,2.8188,177.46,177.41,2.8195]
[1736791819278,3.1617,177.49,177.37,1.6645]
[1736791819478,3.1617,177.49,177.33,1.7042]
[1736791819479,21.9101928,177.47,177.33,23.6143928]
[1736791819982,2.8192,177.44,177.37,2.8202]
[1736791820179,3.1617,177.49,177.36,21.9101928]
[1736791820376,1.5694,177.49,177.37,6.14]
[1736791820681,21.9101928,177.53,177.39,21.9101928]
[1736791820881,1.7059,177.56,177.42,21.9101928]
[1736791821082,1.7059,177.56,177.43,1.6409]
[1736791821381,2.8178,177.53,177.47,2.8185]
[1736791821681,2.8178,177.53,177.44,6.14]
[1736791821878,2.8178,177.53,177.48,2.8184]
[1736791822076,23.6160928,177.56,177.44,6.14]
[1736791822975,2.8177,177.53,177.4,1.5882]
[1736791823175,21.9101928,177.53,177.4,1.5882]
[1736791823480,1.7059,177.56,177.4,1.5882]
[1736791823682,23.6160928,177.56,177.4,1.5882]
[1736791823984,21.9101928,177.53,177.42,2.8194]